{"text_format":"3","workbook":"xlsx","n_sheets":3,"sheets":["Inicio","Cartera","Asignación de activos"],"not_rendered":{"charts":1,"images":6,"defined_names":1},"read":"whole","date_system":"1900"}

{"sheet":"Inicio","index":0,"n_rows":29,"n_cols":2,"rows_kept":29}
["Seguimiento de la inversión","Seguimiento de la inversión"]
[]
["La plantilla Seguimiento de la inversión te permitirá hacer un seguimiento de tus inversiones y de la asignación de activos. El tipo de datos Cotizaciones de Excel guardará una cartera actualizada de los precios actuales y detalles de tus activos. Hay dos hojas de cálculo, Cartera y Asignación de activos, que se describen a continuación. Nota: El tipo de datos Cotizaciones de Excel es una característica exclusiva de suscripción de Office 365. "]
[]
["Cartera","Cartera"]
["Agrega tus inversiones, escribe símbolos bursátiles, nombres de la compañía o nombres del fondo sobre los ejemplos, o bien agrega más en líneas adicionales. Selecciona una categoría de activo y escribe el número de acciones."]
["Haz clic en el botón Agregar columna para agregar columnas adicionales como Símbolo bursátil o Cambio."]
{"$rows_empty":13}
["Para actualizar los datos, haz clic en cualquiera de las cotizaciones. En la pestaña Datos, en el grupo Consultas y conexiones, haz clic en Actualizar todo o presiona Ctrl+Alt+F5."]
[]
[]
[]
[]
["Asignación de activos","Asignación de activos"]
[]
["Cambia Categorías y Mi objetivo para personalizar con los objetivos de tu cartera."]
["Cuando la categoría de un activo supera el Umbral, las cantidades aparecerán resaltadas en amarillo."]

{"sheet":"Cartera","index":1,"n_rows":12,"n_cols":9,"rows_kept":12}
["Seguimiento de la inversión","Seguimiento de la inversión"]
[]
["Cartera","Cartera"]
[]
["Hay una tabla con las cotizaciones existentes en las celdas B5:I11 y una fila de totales en la fila 12. Escribe un nombre de compañía en las celdas B5:B11 y ve a Datos > Actualizar o presiona Ctrl+Alt+F5.","Compañía","Categoría","Acciones","Precio","Cambio","Cambio (%)","% de cartera","Valor"]
["Agrega tus inversiones, escribe símbolos bursátiles, nombres de la compañía o nombres del fondo sobre los ejemplos, o bien agrega más en líneas adicionales.  Selecciona una categoría de activo y escribe el número de acciones.",{"$error":"#VALUE!"},"Acciones de EE. UU.",{"v":1200,"d":"1,200"},{"$f":"_FV(TablaCartera[[#This Row],[Compañía]],\"Price\")","v":{"v":105.21,"d":"$105.21"}},{"$f":"_FV(TablaCartera[[#This Row],[Compañía]],\"change\")","v":{"v":-0.24,"d":"-$0.24"}},{"$f":"_FV(TablaCartera[[#This Row],[Compañía]],\"Change (%)\",TRUE)","v":{"v":-0.002276,"d":"-0.23%"}},{"$f":"IFERROR(I6/SUBTOTAL(109,TablaCartera[Valor]),\"\")","v":{"v":0.5974736139719061,"d":"60%"}},{"$f":"D6 * E6","v":{"v":126251.99999999999,"d":"$126,252.00"}}]
["Haz clic en el botón Agregar columna para agregar columnas adicionales como Símbolo bursátil o Cambio.",{"$error":"#VALUE!"},"Bonos",{"v":1300,"d":"1,300"},{"$f":"_FV(TablaCartera[[#This Row],[Compañía]],\"Price\")","v":{"v":10.46,"d":"$10.46"}},{"$f":"_FV(TablaCartera[[#This Row],[Compañía]],\"change\")","v":{"v":0.0122760756111569,"d":"$0.01"}},{"$f":"_FV(TablaCartera[[#This Row],[Compañía]],\"Change (%)\",TRUE)","v":{"v":1.1749999999999998E-3,"d":"0.12%"}},{"$f":"IFERROR(I7/SUBTOTAL(109,TablaCartera[Valor]),\"\")","v":{"v":0.06435102970875695,"d":"6%"}},{"v":13598.000000000002,"d":"$13,598.00"}]
["Para actualizar los datos, haz clic en cualquiera de las cotizaciones. En la pestaña Datos, en el grupo Consultas y conexiones, haz clic en Actualizar todo o presiona Ctrl+Alt+F5.",{"$error":"#VALUE!"},"Acciones internacionales",{"v":1200,"d":"1,200"},{"$f":"_FV(TablaCartera[[#This Row],[Compañía]],\"Price\")","v":{"v":29.29,"d":"$29.29"}},{"$f":"_FV(TablaCartera[[#This Row],[Compañía]],\"change\")","v":{"v":0.0699994333574489,"d":"$0.07"}},{"$f":"_FV(TablaCartera[[#This Row],[Compañía]],\"Change (%)\",TRUE)","v":{"v":0.0023956,"d":"0.24%"}},{"$f":"IFERROR(I8/SUBTOTAL(109,TablaCartera[Valor]),\"\")","v":{"v":0.16633401913541615,"d":"17%"}},{"v":35148,"d":"$35,148.00"}]
[null,{"$error":"#VALUE!"},"Efectivo",{"v":10000,"d":"10,000"},{"$f":"_FV(TablaCartera[[#This Row],[Compañía]],\"Price\")","v":{"v":1,"d":"$1.00"}},{"$f":"_FV(TablaCartera[[#This Row],[Compañía]],\"change\")","v":0},{"$f":"_FV(TablaCartera[[#This Row],[Compañía]],\"Change (%)\",TRUE)","v":{"v":0,"d":"0.00%"}},{"$f":"IFERROR(I9/SUBTOTAL(109,TablaCartera[Valor]),\"\")","v":{"v":0.0473238930054103,"d":"5%"}},{"v":10000,"d":"$10,000.00"}]
[null,{"$error":"#VALUE!"},"Inmuebles",125,{"$f":"_FV(TablaCartera[[#This Row],[Compañía]],\"Price\")","v":{"v":116.63,"d":"$116.63"}},{"$f":"_FV(TablaCartera[[#This Row],[Compañía]],\"change\")","v":{"v":-0.249994620493774,"d":"-$0.25"}},{"$f":"_FV(TablaCartera[[#This Row],[Compañía]],\"Change (%)\",TRUE)","v":{"v":-2.1389E-3,"d":"-0.21%"}},{"$f":"IFERROR(I10/SUBTOTAL(109,TablaCartera[Valor]),\"\")","v":{"v":0.06899232051526255,"d":"7%"}},{"v":14578.75,"d":"$14,578.75"}]
[null,{"$error":"#VALUE!"},"Commodities",100,{"$f":"_FV(TablaCartera[[#This Row],[Compañía]],\"Price\")","v":{"v":117.33,"d":"$117.33"}},{"$f":"_FV(TablaCartera[[#This Row],[Compañía]],\"change\")","v":{"v":-0.27,"d":"-$0.27"}},{"$f":"_FV(TablaCartera[[#This Row],[Compañía]],\"Change (%)\",TRUE)","v":{"v":-0.002296,"d":"-0.23%"}},{"$f":"IFERROR(I11/SUBTOTAL(109,TablaCartera[Valor]),\"\")","v":{"v":0.05552512366324791,"d":"6%"}},{"v":11733,"d":"$11,733.00"}]
[null,"Total",{"$nulls":6},{"$f":"IFERROR(SUBTOTAL(109,TablaCartera[Valor]), \"\")","v":{"v":211309.75,"d":"$211,309.75"}}]

{"sheet":"Asignación de activos","index":2,"n_rows":25,"n_cols":7,"rows_kept":25}
["Seguimiento de la inversión","Seguimiento de la inversión"]
[]
["Asignación de activos","Asignación de activos"]
[]
[]
["Hay un gráfico de barras que compara visualmente el porcentaje real de inversiones en cada categoría con los objetivos de la tabla a continuación, en las filas 19 a 25."]
{"$rows_empty":12}
["Hay una tabla que calcula el porcentaje real de inversiones en cada categoría y lo compara con los objetivos.","Categoría","Mi objetivo","Real","Diferencia","Umbral","Valor"]
["La tabla completa automáticamente las categorías de la inversión con información de la tabla de la cartera en las celdas B19:G25. Escribe un objetivo para cada categoría de inversión en las celdas C20:C25 y ve a Datos > Actualizar o presiona Ctrl+Alt+F5. ","Acciones de EE. UU.",{"v":0.55,"d":"55%"},{"$f":"IFERROR(G20/SUBTOTAL(109,TablaAsignaciónActivos[Valor]),\"\")","v":{"v":0.5974736139719061,"d":"60%"}},{"$f":"D20 - C20","v":{"v":0.04747361397190608,"d":"4.7%"}},{"$f":"MIN(5%, $C20 * 25%)","v":{"v":0.05,"d":"5%"}},{"$f":"SUMIF(TablaCartera[Categoría], B20, TablaCartera[Valor])","v":{"v":126251.99999999999,"d":"$126,252.00"}}]
["Cuando la categoría de un activo supera el Umbral, las cantidades aparecerán resaltadas en amarillo.","Acciones internacionales",{"v":0.2,"d":"20%"},{"$f":"IFERROR(G21/SUBTOTAL(109,TablaAsignaciónActivos[Valor]),\"\")","v":{"v":0.16633401913541615,"d":"17%"}},{"v":-0.03366598086458386,"d":"-3.4%"},{"v":0.05,"d":"5%"},{"$f":"SUMIF(TablaCartera[Categoría], B21, TablaCartera[Valor])","v":{"v":35148,"d":"$35,148.00"}}]
[null,"Bonos",{"v":0.1,"d":"10%"},{"$f":"IFERROR(G22/SUBTOTAL(109,TablaAsignaciónActivos[Valor]),\"\")","v":{"v":0.06435102970875695,"d":"6%"}},{"v":-0.03564897029124306,"d":"-3.6%"},{"v":0.025,"d":"3%"},{"$f":"SUMIF(TablaCartera[Categoría], B22, TablaCartera[Valor])","v":{"v":13598.000000000002,"d":"$13,598.00"}}]
[null,"Efectivo",{"v":0.05,"d":"5%"},{"$f":"IFERROR(G23/SUBTOTAL(109,TablaAsignaciónActivos[Valor]),\"\")","v":{"v":0.0473238930054103,"d":"5%"}},{"v":-0.0026761069945897,"d":"-0.3%"},{"v":0.0125,"d":"1%"},{"$f":"SUMIF(TablaCartera[Categoría], B23, TablaCartera[Valor])","v":{"v":10000,"d":"$10,000.00"}}]
[null,"Inmuebles",{"v":0.05,"d":"5%"},{"$f":"IFERROR(G24/SUBTOTAL(109,TablaAsignaciónActivos[Valor]),\"\")","v":{"v":0.06899232051526255,"d":"7%"}},{"v":0.018992320515262548,"d":"1.9%"},{"v":0.0125,"d":"1%"},{"$f":"SUMIF(TablaCartera[Categoría], B24, TablaCartera[Valor])","v":{"v":14578.75,"d":"$14,578.75"}}]
[null,"Commodities",{"v":0.05,"d":"5%"},{"$f":"IFERROR(G25/SUBTOTAL(109,TablaAsignaciónActivos[Valor]),\"\")","v":{"v":0.05552512366324791,"d":"6%"}},{"v":0.005525123663247908,"d":"0.6%"},{"v":0.0125,"d":"1%"},{"$f":"SUMIF(TablaCartera[Categoría], B25, TablaCartera[Valor])","v":{"v":11733,"d":"$11,733.00"}}]